bitfinex/quotes_ETHUSD_20240810
["timestamp","ask_amount","ask_price","bid_price","bid_amount"]
[1723295250770,1.90254,2628.1,2627.5,2.57761831]
[1723295251481,1.90254,2628.1,2627.5,0.67467831]
[1723295252273,1.90254,2628.1,2627.5,2.57761831]
[1723295253906,1.90246,2628.2,2627.5,2.57756831]
[1723295254093,1.90246,2628.2,2627.6,0.55183314]
[1723295254937,1.90256,2628.1,2627.6,0.55183314]
[1723295255282,3.80514,2628.1,2627.6,0.55183314]
[1723295255610,1.90256,2628.1,2627.4,4.3626]
[1723295256317,1.90258,2628.0,2627.4,4.3626]
[1723295256520,1.90278,2627.8,2627.4,2.4596]
[1723295257517,2.583319,2627.8,2627.3,19.56]
[1723295257808,1.90292,2627.6,2627.1,2.4596]
[1723295258176,1.90295,2627.5,2627.1,2.4596]
[1723295258810,1.90303,2627.4,2627.0,0.1271533]
[1723295259372,0.680539,2627.8,2627.0,0.1271533]
[1723295259373,1.90322,2627.2,2627.0,0.1271533]
[1723295259579,1.90322,2627.2,2627.1,0.11441586]
[1723295260817,3.80645,2627.2,2627.1,0.11441586]
[1723295262677,1.90322,2627.2,2627.1,0.11441586]
[1723295265144,1.90316,2627.3,2627.1,0.11441586]
[1723295265333,3.0,2627.4,2627.1,0.11441586]
[1723295265527,1.90298,2627.5,2627.1,0.11441586]
[1723295265739,3.80599,2627.5,2627.1,0.11441586]
[1723295265935,3.0,2627.4,2627.1,0.11441586]
[1723295266652,1.90309,2627.3,2627.1,0.11441586]
[1723295268319,1.90316,2627.2,2627.1,0.11441586]
[1723295268922,3.80632,2627.2,2627.1,0.11441586]
[1723295269146,6.80632,2627.2,2627.1,0.11441586]
[1723295269346,8.033922,2627.2,2627.1,0.11441586]
[1723295270365,4.37344,2626.4,2626.3,0.005]
[1723295270576,0.1,2627.1,2626.3,0.005]
[1723295270577,1.90354,2626.7,2626.3,0.005]
[1723295270719,4.323572,2626.6,2626.4,2.3576]
[1723295270921,1.90314,2627.3,2626.6,1.90359]
[1723295271164,1.90314,2627.3,2626.7,0.11036345]
[1723295271460,1.90274,2627.8,2627.1,1.90323]
[1723295271461,1.90278,2627.8,2627.1,1.90323]
[1723295271659,1.90288,2627.6,2627.1,2.3576]
[1723295271816,1.90278,2627.8,2627.2,0.10993654]
[1723295272024,1.90288,2627.6,2627.2,0.10993654]
[1723295272658,0.437248,2627.8,2627.2,0.10993654]
[1723295272838,1.90287,2627.7,2627.2,0.10993654]
[1723295274257,1.90242,2628.3,2627.4,2.3576]
[1723295274428,1.90225,2628.5,2627.7,1.90277]
[1723295274624,1.90225,2628.5,2627.8,0.0759922]
[1723295274956,1.90225,2628.5,2627.8,0.18541667]
[1723295275368,1.90225,2628.5,2627.9,1.90265]
[1723295275676,2.282683,2628.5,2627.9,2.01198914]
[1723295276334,2.282683,2628.5,2627.9,0.10933914]
[1723295276561,2.282683,2628.5,2627.7,1.90277]
[1723295276775,2.282683,2628.5,2628.0,0.10925383]
[1723295277074,2.282683,2628.5,2627.7,1.90277]
[1723295277371,0.5282683,2628.4,2627.7,1.90277]
[1723295277567,0.5282683,2628.4,2627.5,2.14627067]
[1723295277568,3.5282683,2628.4,2627.8,0.10942447]
[1723295277743,1.90252,2628.1,2627.4,4.26061]
[1723295277949,1.90245,2628.2,2627.9,0.10933914]
[1723295278247,3.5282683,2628.4,2627.7,1.90275]
[1723295278447,1.90224,2628.5,2628.0,0.10925383]
[1723295278647,1.9023,2628.4,2627.9,2.3576]
[1723295278973,4.9023,2628.4,2628.0,0.10885936]
[1723295279277,2.582824,2628.3,2628.0,0.10885936]
[1723295279431,1.90244,2628.2,2628.0,0.10885936]
[1723295279630,2.582824,2628.3,2628.0,0.10885936]
[1723295280265,1.90245,2628.2,2628.0,0.10885936]
[1723295281280,0.680454,2628.3,2628.0,0.10885936]
[1723295281475,3.0,2628.3,2628.0,0.10885936]
[1723295281884,4.90234,2628.4,2627.9,2.3576]
[1723295282098,1.90238,2628.3,2628.1,0.10877405]
[1723295282299,1.90249,2628.2,2628.0,0.10885936]
[1723295282499,1.90249,2628.2,2627.5,4.26053]
[1723295282802,2.282977,2628.2,2627.5,4.26053]
[1723295282970,1.90251,2628.1,2627.5,4.26053]
[1723295283898,1.90266,2627.9,2627.5,2.3576]
[1723295284300,1.90266,2627.9,2627.2,2.3576]
[1723295284301,1.9028,2627.7,2627.2,2.3576]
[1723295284704,1.9028,2627.7,2626.9,1.90336]
[1723295284705,1.903,2627.5,2626.9,2.3576]
[1723295285973,1.9031,2627.3,2626.9,2.3576]
[1723295286528,1.903,2627.5,2626.9,2.3576]
[1723295287838,1.903,2627.5,2626.9,4.26097]
[1723295288115,1.90283,2627.7,2627.0,1.9033]
[1723295288481,1.90287,2627.6,2627.0,1.9033]
[1723295288700,1.90283,2627.7,2627.0,1.9033]
[1723295289374,1.90295,2627.5,2626.9,2.3576]
[1723295289574,3.490266,2627.9,2627.1,0.10926688]
[1723295289575,1.90315,2627.3,2627.1,0.10926688]
[1723295289816,1.90315,2627.3,2626.9,2.3576]
[1723295290000,1.90315,2627.3,2627.2,0.10918151]
[1723295290198,1.90315,2627.3,2626.9,2.3576]
[1723295290419,1.90315,2627.3,2627.2,0.10918151]
[1723295290621,2.283763,2627.3,2626.9,2.3576]
[1723295290921,1.90346,2626.8,2626.6,2.3243]
[1723295291223,1.90346,2626.8,2626.3,0.005]
[1723295291224,1.90346,2626.8,2626.3,2.3293]
[1723295291386,3.80667,2627.0,2626.3,2.3293]
[1723295291589,3.0,2627.3,2626.4,2.327004]
[1723295291590,1.90319,2627.2,2626.4,2.327004]
[1723295291792,1.90324,2627.1,2626.5,1.90361]
[1723295292099,4.90324,2627.1,2626.5,1.90361]
[1723295292302,3.0,2627.1,2626.6,1.90359]
[1723295292615,1.90319,2627.2,2626.6,1.90359]
[1723295294012,3.0,2627.3,2626.7,2.3243]
[1723295294217,1.90305,2627.4,2626.8,1.90344]
[1723295294588,1.90322,2627.2,2626.7,2.3243]
[1723295295994,3.80644,2627.2,2626.7,2.3243]
[1723295296200,3.0,2627.1,2626.7,2.3243]
[1723295296831,1.90335,2627.0,2626.6,19.56]
[1723295297808,1.90328,2627.1,2626.6,19.56]
[1723295298003,3.0,2627.2,2626.6,19.56]
[1723295298205,1.90312,2627.3,2626.6,19.56]
[1723295298410,1.90312,2627.3,2626.7,2.3243]
[1723295298815,2.738,2629.9,2627.1,1.90318]
[1723295298816,1.9027,2627.9,2627.1,1.90318]
[1723295299013,1.9027,2627.9,2627.3,2.3243]
[1723295299346,1.9027,2627.9,2627.3,2.40041497]
[1723295299638,1.9027,2627.9,2627.3,4.30345497]
[1723295299942,1.90254,2628.1,2627.4,1.90301]
[1723295301218,1.90263,2628.0,2627.3,4.22734]
[1723295301412,1.90266,2627.9,2627.3,5.6358068]
[1723295302683,1.90281,2627.7,2627.3,2.3243]
[1723295303249,5.4226,2628.0,2627.1,7.49]
[1723295303782,3.80586,2627.6,2627.1,7.49]
[1723295303991,3.80586,2627.6,2627.2,2.3243]
[1723295303992,1.90293,2627.6,2627.2,2.3243]
[1723295304282,4.9026,2628.0,2627.3,1.90309]
[1723295304478,1.90271,2627.9,2627.3,1.90309]
[1723295304777,1.90288,2627.6,2627.4,0.10933311]
[1723295304982,1.90288,2627.6,2627.2,2.3243]
[1723295305345,1.90288,2627.6,2627.5,0.10924776]
[1723295305667,1.90288,2627.6,2627.3,0.10941846]
[1723295305845,1.90288,2627.6,2627.2,2.3243]
[1723295306046,1.90288,2627.6,2627.4,0.10933311]
[1723295306243,1.90288,2627.6,2627.2,2.3243]
[1723295306484,1.90288,2627.6,2627.5,0.10924776]
[1723295306801,1.90288,2627.6,2627.2,2.3243]
[1723295306993,1.90288,2627.6,2627.5,0.10924776]
[1723295307288,1.90281,2627.7,2627.2,2.3243]
[1723295307590,1.90281,2627.7,2627.5,0.10927321]
[1723295307746,1.90281,2627.7,2627.3,0.10944391]
[1723295307947,1.90281,2627.7,2627.2,4.703058]
[1723295308247,1.90281,2627.7,2627.3,0.10944391]
[1723295308446,1.90281,2627.7,2627.2,4.703058]
[1723295308648,1.9029,2627.6,2627.4,0.10935856]
[1723295308849,3.80567,2627.7,2627.4,0.10935856]
[1723295309153,2.283377,2627.7,2627.5,0.10927321]
[1723295309374,1.90281,2627.7,2627.5,0.10927321]
[1723295309687,1.90281,2627.7,2627.6,0.10917938]
[1723295309895,1.90269,2627.9,2627.6,0.10917938]
[1723295310051,1.90269,2627.9,2627.3,1.90303]
[1723295310266,6.80509,2628.1,2627.7,0.10909405]
[1723295310461,3.0,2628.1,2627.2,2.3243]
[1723295310698,1.9029,2627.6,2627.2,2.3243]
[1723295311804,3.80582,2627.6,2627.0,2.4141]
[1723295312004,1.90296,2627.5,2627.0,2.4141]
[1723295312381,1.9029,2627.6,2627.0,4.3174]
[1723295312684,1.9029,2627.6,2627.0,7.070043]
[1723295312863,1.90262,2628.0,2627.1,4.31731]
[1723295313065,1.90262,2628.0,2627.2,0.07611385]
[1723295313342,1.90267,2627.9,2627.3,1.90303]
[1723295313609,4.90267,2627.9,2627.3,1.97914386]
[1723295314426,3.0,2627.9,2627.2,0.79072054]
[1723295314586,1.90277,2627.8,2627.1,4.31731]
[1723295314792,1.90289,2627.6,2627.1,4.31731]
[1723295315010,1.90277,2627.8,2627.1,4.31731]
[1723295315217,1.90277,2627.8,2627.1,4.31728]
[1723295315908,1.90277,2627.8,2627.1,6.22047]
[1723295316229,1.90282,2627.7,2627.1,5.5794913]
[1723295317224,1.90282,2627.7,2627.1,25.1394913]
[1723295317721,1.90277,2627.8,2627.1,25.1394913]
[1723295317923,1.90277,2627.8,2627.2,1.90312]
[1723295318091,1.90277,2627.8,2627.2,1.97923395]
[1723295318291,1.90277,2627.8,2627.2,4.69110648]
[1723295319023,1.90292,2627.6,2627.2,2.71187253]
[1723295319227,1.90297,2627.5,2627.1,21.9741]
[1723295319523,1.90304,2627.4,2627.1,21.9741]
[1723295319728,1.90304,2627.4,2627.2,0.10949958]
[1723295319924,1.90309,2627.3,2627.2,0.10949958]
[1723295320423,1.90309,2627.3,2626.9,2.4141]
[1723295321325,1.90317,2627.2,2627.0,0.10969153]
[1723295324065,1.90323,2627.1,2627.0,0.10969153]
[1723295324352,1.90323,2627.1,2626.6,2.4141]
[1723295324353,0.38064,2627.1,2626.6,2.4141]
[1723295324524,1.90346,2626.8,2626.4,5.1511]
[1723295324924,3.0,2627.3,2626.5,0.07613987]
[1723295325122,3.0,2627.4,2626.9,2.4141]
[1723295325326,1.903,2627.5,2626.9,2.4141]
[1723295325918,3.806,2627.5,2626.9,2.4141]
[1723295326229,4.90302,2627.4,2626.9,2.4141]
[1723295326635,1.90302,2627.4,2626.9,2.4141]
[1723295326848,4.90289,2627.6,2626.9,2.4141]
[1723295326849,3.0,2627.6,2627.1,1.90321]
[1723295327149,4.9027,2627.9,2627.2,1.90311]
[1723295327347,1.9027,2627.9,2627.2,1.97922597]
[1723295327550,1.9027,2627.9,2627.3,0.4375326]
[1723295327710,1.9027,2627.9,2627.4,2.3961]
[1723295329911,3.0,2628.1,2627.5,0.07610888]
[1723295330112,2.4985778,2628.5,2627.5,0.07610888]
[1723295330113,2.4985778,2628.5,2627.6,2.3961]
[1723295330318,2.99767558,2628.5,2627.7,0.07610402]
[1723295331055,0.5963278,2628.5,2627.8,4.29881]
[1723295331218,0.5963278,2628.5,2627.8,4.37490682]
[1723295332129,0.5963278,2628.5,2627.8,4.29881]
[1723295332547,1.90237,2628.3,2627.8,2.3961]
[1723295332860,2.4986078,2628.5,2627.8,5.03239209]
[1723295333164,0.5963278,2628.5,2628.0,1.90258]
[1723295333748,4.39447,2628.8,2628.0,1.90258]
[1723295334061,3.0,2628.7,2628.0,1.90258]
[1723295334257,1.9022,2628.6,2627.8,6.93506209]
[1723295334442,1.90227,2628.5,2627.8,5.03239209]
[1723295334745,4.90227,2628.5,2627.8,5.03239209]
[1723295334950,4.90227,2628.5,2627.9,0.10877076]
[1723295335254,4.90227,2628.5,2627.9,2.56800997]
[1723295335457,3.0,2628.6,2628.0,1.90258]
[1723295335656,4.90217,2628.6,2628.0,1.90258]
[1723295335862,1.90228,2628.5,2628.0,0.10822742]
[1723295336226,1.90228,2628.5,2627.8,4.29876]
[1723295336849,1.90228,2628.5,2627.9,0.10831274]
[1723295337119,1.90229,2628.4,2627.9,0.10831274]
[1723295337348,2.49347578,2628.4,2627.9,0.10831274]
[1723295338031,4.39582578,2628.4,2627.9,0.10831274]
[1723295338231,1.90238,2628.3,2627.9,0.10831274]
[1723295339718,4.39581578,2628.4,2627.9,0.10831274]
[1723295339917,1.90229,2628.4,2627.9,0.10831274]
[1723295340354,3.0,2628.5,2628.3,2.3961]
[1723295340538,0.5962122,2628.9,2628.3,2.3961]
[1723295340717,2.4981622,2628.9,2628.3,2.3961]
[1723295340922,2.4981622,2628.9,2628.4,0.10788622]
[1723295341117,5.4981622,2628.9,2628.4,0.10788622]
[1723295341444,3.5962122,2628.9,2628.4,2.01017622]
[1723295341754,3.0,2628.8,2628.4,0.54851384]
[1723295342128,0.5962122,2628.9,2628.4,0.54851384]
[1723295342328,0.5962122,2628.9,2628.5,0.0759744]
[1723295342528,3.80352,2629.2,2628.6,2.3961]
[1723295342757,1.90175,2629.2,2628.6,4.40589566]
[1723295342957,2.49767703,2629.4,2628.6,4.40589566]
[1723295343159,2.49767703,2629.4,2628.6,5.17701105]
[1723295343383,2.49767703,2629.4,2628.8,1.90199]
[1723295343668,5.49767703,2629.4,2628.8,1.90199]
[1723295343823,5.49767703,2629.4,2628.9,0.10745987]
[1723295344362,7.39931703,2629.4,2628.9,0.10745987]
[1723295344941,5.49767703,2629.4,2628.9,0.10745987]
[1723295345265,3.0,2629.3,2628.9,0.10745987]
[1723295345465,2.49767703,2629.4,2628.9,0.10745987]
[1723295345646,2.49767703,2629.4,2629.0,0.10737462]
[1723295346041,2.49767703,2629.4,2629.1,0.10728937]
[1723295346276,0.59607703,2629.4,2628.8,1.90194]
[1723295346478,0.59607703,2629.4,2629.2,2.0085478]
[1723295346778,1.90133,2629.8,2629.2,1.90167]
[1723295347080,1.90133,2629.8,2629.3,0.10646199]
[1723295347273,2.57765939,2629.8,2629.3,0.10646199]
[1723295347641,3.0,2629.7,2629.3,0.10646199]
[1723295347957,1.90157,2629.4,2629.3,0.10646199]
[1723295348351,1.9015,2629.5,2628.7,4.30778]
[1723295348352,1.90164,2629.3,2628.7,4.30778]
[1723295348990,1.90164,2629.3,2628.7,2.4057]
[1723295349139,3.0,2629.4,2629.0,1.90186]
[1723295349345,4.90151,2629.5,2629.0,1.90186]
[1723295349644,3.0,2629.4,2629.1,0.10286289]
[1723295349844,1.90151,2629.5,2629.1,2.50856289]
[1723295350573,4.90143,2629.6,2629.1,2.50856289]
[1723295351089,3.80292,2629.6,2629.1,2.50856289]
[1723295351243,4.9015,2629.5,2629.1,2.50856289]
[1723295351450,1.9015,2629.5,2629.1,2.50856289]
[1723295351791,3.0,2629.5,2629.1,2.50856289]
[1723295352097,2.57763939,2629.8,2629.1,5.04150618]
[1723295352098,3.0,2629.7,2629.1,5.04150618]
[1723295352295,4.90136,2629.7,2629.1,5.04150618]
[1723295352494,4.90136,2629.7,2629.1,3.13978618]
[1723295352794,1.90144,2629.6,2629.1,2.50856289]
[1723295353578,3.0,2629.7,2629.1,4.41031289]
[1723295353990,4.90137,2629.7,2629.1,4.41031289]
[1723295356173,3.0,2629.7,2629.4,1.90156]
[1723295356361,1.90102,2630.2,2629.5,2.4057]
[1723295356560,3.80207,2630.2,2629.6,2.4057]
[1723295356766,1.90107,2630.1,2629.6,2.4057]
[1723295356990,1.90107,2630.1,2629.7,0.10230511]
[1723295357578,4.90107,2630.1,2629.7,0.10230511]
[1723295357785,1.90114,2630.0,2629.7,0.10230511]
[1723295358096,4.90114,2630.0,2629.7,0.10230511]
[1723295358301,1.90114,2630.0,2629.7,0.10230511]
[1723295359199,3.0,2630.1,2629.7,0.10230511]
[1723295359408,1.90111,2630.1,2629.7,0.10230511]
[1723295359577,4.90111,2630.1,2629.7,0.10230511]
[1723295360194,3.0,2630.1,2629.8,2.4057]
[1723295360396,1.90086,2630.4,2629.8,2.4057]
[1723295360575,1.90086,2630.4,2629.9,0.10172948]
[1723295361511,3.0,2630.5,2629.9,0.10172948]
[1723295361679,1.90072,2630.6,2630.1,2.4057]
[1723295362204,1.90072,2630.6,2630.2,0.10130093]
[1723295363375,1.90072,2630.6,2630.1,1.72831333]
[1723295363589,1.90072,2630.6,2630.3,0.09783907]
[1723295363786,1.90072,2630.6,2630.2,0.09792424]
[1723295363990,1.90072,2630.6,2630.4,0.09775391]
[1723295364192,1.90072,2630.6,2630.3,0.09783907]
[1723295364501,1.90072,2630.6,2630.4,0.09775391]
[1723295364709,1.90072,2630.6,2630.1,1.72831333]
[1723295364861,1.90072,2630.6,2630.5,0.09766875]
[1723295365068,1.90072,2630.6,2630.1,1.72831333]
[1723295365266,1.90072,2630.6,2630.2,0.09792424]
[1723295365861,3.0,2630.7,2630.2,0.09792424]
[1723295366110,4.90059,2630.8,2630.2,0.09792424]
[1723295366307,5.38670215,2630.8,2630.2,2.43802424]
[1723295368282,7.28732215,2630.8,2630.2,2.43802424]
[1723295368893,1.90064,2630.7,2630.2,2.43802424]
[1723295369227,4.90064,2630.7,2630.2,2.43802424]
[1723295371089,1.90071,2630.6,2630.2,2.43802424]
[1723295371282,1.90071,2630.6,2630.2,0.09792424]
[1723295371481,1.90071,2630.6,2630.0,4.24122]
[1723295371694,1.90071,2630.6,2630.1,0.0975369]
[1723295371695,4.90071,2630.6,2630.1,0.0975369]
[1723295371912,5.72597264,2630.6,2630.1,0.0975369]
[1723295373501,4.90071,2630.6,2630.1,0.0975369]
[1723295373701,1.90071,2630.6,2630.1,0.0975369]
[1723295376231,1.90071,2630.6,2630.1,1.9985869]
[1723295379794,1.90071,2630.6,2630.1,0.0975369]
[1723295379991,3.0,2630.7,2630.1,0.0975369]
[1723295380191,2.882759,2630.6,2630.1,0.0975369]
[1723295380397,3.0,2630.5,2629.7,2.3401]
[1723295380595,2.3927,2630.6,2629.7,2.3401]
[1723295380596,1.90085,2630.4,2630.2,0.09746859]
[1723295380897,1.90111,2630.1,2629.7,2.3401]
[1723295381092,3.80223,2630.1,2629.5,1.90149]
[1723295381292,4.29381,2630.1,2629.5,1.637019]
[1723295381559,4.29381,2630.1,2629.4,2.3401]
[1723295381760,1.90125,2629.9,2629.4,2.3401]
[1723295382048,1.90137,2629.7,2629.4,2.3401]
[1723295385143,1.90125,2629.9,2629.4,2.3401]
[1723295385315,3.0,2630.0,2629.5,1.90149]
[1723295385518,4.90114,2630.0,2629.4,2.3401]
[1723295385930,4.90114,2630.0,2629.4,4.24165]
[1723295390428,3.0,2630.0,2629.4,4.24165]
[1723295390635,3.0,2630.0,2629.5,1.90149]
[1723295391068,1.90109,2630.1,2629.5,1.90149]
[1723295391772,1.90109,2630.1,2629.4,7.560944]
[1723295391954,1.90109,2630.1,2629.4,4.24161]
[1723295392159,1.9012,2630.0,2629.4,4.24161]
[1723295392534,4.9012,2630.0,2629.4,4.24161]
[1723295393846,4.9012,2630.0,2629.6,1.139]
[1723295394569,4.9012,2630.0,2629.7,0.0982616]
[1723295394772,5.581429,2630.0,2629.7,0.0982616]
[1723295395661,1.90126,2629.9,2629.7,0.0982616]
[1723295395854,4.90126,2629.9,2629.7,0.0982616]
[1723295396250,6.80252,2629.9,2629.7,0.0982616]
[1723295396536,4.90126,2629.9,2629.7,0.0982616]
[1723295396753,5.6495189,2629.9,2629.7,0.0982616]
[1723295397874,3.7482589,2629.9,2629.7,0.0982616]
[1723295398172,4.90118,2630.0,2629.7,0.0982616]
[1723295398538,6.15836,2629.8,2629.7,0.0982616]
[1723295398760,1.90161,2629.4,2629.1,1.139]
[1723295399176,4.25741,2629.4,2628.9,1.139]
[1723295399359,3.0,2629.3,2628.9,1.139]
[1723295400876,3.0,2629.3,2628.4,2.2577]
[1723295400877,5.627401,2629.3,2628.6,1.90214]
[1723295401084,1.90187,2629.0,2628.7,1.139]
[1723295401639,1.90187,2629.0,2628.4,4.15994]
[1723295401885,1.90187,2629.0,2628.4,4.766165]
[1723295402245,1.90194,2628.9,2628.4,4.766165]
[1723295402563,1.90194,2628.9,2628.2,4.63638]
[1723295402756,4.90194,2628.9,2628.2,4.63638]
[1723295403283,6.80393,2628.9,2628.2,4.63638]
[1723295403646,4.90194,2628.9,2628.2,4.63638]
[1723295404261,4.90194,2628.9,2628.3,1.90236]
[1723295405186,1.90205,2628.8,2628.2,2.734]
[1723295405506,1.90222,2628.5,2628.1,19.56]
[1723295405795,1.90241,2628.3,2627.8,7.49]
[1723295405948,1.90244,2628.2,2627.7,19.56]
[1723295406145,1.90253,2628.1,2627.7,19.56]
[1723295406351,1.9026,2628.0,2627.5,22.294]
[1723295406612,3.0,2628.0,2627.5,22.91901]
[1723295407385,4.26665,2628.0,2627.5,19.56]
[1723295408087,1.90266,2627.9,2627.5,19.56]
[1723295408262,1.90266,2627.9,2627.2,1.90311]
[1723295408462,4.90266,2627.9,2627.2,1.90311]
[1723295408666,5.629326,2627.9,2627.2,1.90311]
[1723295408864,1.90278,2627.8,2627.2,1.90311]
[1723295409086,1.90281,2627.7,2627.1,1.90321]
[1723295409387,1.90281,2627.7,2627.1,0.897865]
[1723295409548,2.364,2627.6,2627.2,0.09473538]
[1723295409872,2.364,2627.6,2627.0,1.90324]
[1723295410075,2.364,2627.6,2627.3,0.09465001]
[1723295410323,2.364,2627.6,2627.0,1.90324]
[1723295410506,3.0,2627.8,2627.4,0.09456466]
[1723295410785,0.190222,2628.5,2627.8,1.90268]
[1723295410786,4.26635,2628.4,2627.8,1.90268]
[1723295410950,2.364,2628.4,2627.9,0.09413798]
[1723295411684,2.364,2628.4,2627.9,1.99676798]
[1723295412654,2.364,2628.4,2628.0,1.90257]
[1723295413193,2.364,2628.4,2628.1,0.09437042]
[1723295413992,3.0,2628.5,2628.1,0.09437042]
[1723295414296,7.26612,2628.7,2628.1,0.09437042]
[1723295414509,0.616809,2628.6,2628.1,0.09437042]
[1723295414683,3.616809,2628.6,2628.1,0.09437042]
[1723295414891,5.518969,2628.6,2628.1,0.09437042]
[1723295415190,1.90222,2628.5,2628.1,0.09437042]
[1723295415350,2.6444289,2628.4,2627.8,21.4627]
[1723295415560,3.0,2628.3,2627.9,0.09454105]
[1723295420087,2.364,2628.2,2627.9,0.09454105]
[1723295420286,1.90257,2628.1,2627.9,0.09454105]
[1723295420525,1.90258,2628.0,2627.9,0.09454105]
[1723295420822,6.16916,2628.0,2627.9,0.09454105]
[1723295421127,9.16916,2628.0,2627.9,0.09454105]
[1723295421431,1.90279,2627.8,2627.2,19.56]
[1723295421626,1.90279,2627.8,2627.1,28.95319]
[1723295421921,1.90279,2627.8,2627.3,0.09559056]
[1723295422135,1.90279,2627.8,2627.4,0.0955052]
[1723295422433,1.90279,2627.8,2627.1,27.05]
[1723295422434,1.90286,2627.7,2627.1,27.05]
[1723295422586,1.90309,2627.3,2626.7,1.90349]
[1723295422782,1.90309,2627.3,2626.7,2.528015]
[1723295423234,1.90309,2627.3,2626.7,0.624525]
[1723295423725,1.90322,2627.2,2626.6,1.90356]
[1723295424028,4.90322,2627.2,2626.6,1.90356]
[1723295424228,1.90324,2627.1,2626.6,19.56]
[1723295424536,4.26724,2627.1,2626.6,19.56]
[1723295424826,4.26724,2627.1,2626.7,0.09610283]
[1723295426200,2.364,2627.1,2626.7,0.09610283]
[1723295429228,2.364,2627.1,2626.8,1.90345]
[1723295429621,4.90304,2627.4,2626.8,1.90345]
[1723295429622,3.0,2627.4,2627.0,1.90326]
[1723295429994,2.4481,2627.7,2627.3,1.90304]
[1723295430314,2.4481,2627.7,2627.2,1.90316]
[1723295430315,2.4481,2628.0,2627.4,1.999]
[1723295430523,3.073422,2628.0,2627.4,1.999]
[1723295430703,4.976002,2628.0,2627.4,1.999]
[1723295430906,2.4481,2628.0,2627.5,1.90289]
[1723295431235,2.4481,2628.0,2627.6,0.09580931]
[1723295432135,5.4481,2628.0,2627.6,0.13489522]
[1723295433140,2.4481,2628.0,2627.6,2.03776522]
[1723295433431,4.3505,2628.3,2627.6,2.43183074]
[1723295433632,4.3505,2628.3,2627.6,2.03776522]
[1723295434043,4.3505,2628.3,2627.6,0.13489522]
[1723295434397,6.25293,2628.3,2627.6,2.03776522]
[1723295434645,4.90246,2628.2,2627.6,0.13489522]
[1723295434851,3.0,2628.2,2627.6,2.03770522]
[1723295435134,3.0,2628.2,2627.8,1.90268]
[1723295435342,3.0,2628.3,2627.8,1.90268]
[1723295435541,4.90229,2628.4,2627.9,0.1347216]
[1723295435752,2.4481,2628.6,2627.9,2.0373316]
[1723295435910,2.4481,2628.6,2628.2,1.90238]
[1723295436111,4.94631176,2628.9,2628.3,0.13437441]
[1723295436311,4.35008,2628.9,2628.1,19.56]
[1723295436537,5.03489218,2628.9,2628.2,0.1344612]
[1723295437308,3.0,2628.8,2628.2,0.1344612]
[1723295437506,3.0,2628.8,2628.3,1.90232]
[1723295437748,3.0,2628.8,2628.4,0.13386323]
[1723295438777,3.0,2628.8,2628.1,23.36491]
[1723295438943,3.0,2628.8,2628.5,0.13377645]
[1723295439271,3.80348922,2628.8,2628.1,3.80491]
[1723295439478,3.80348922,2628.8,2628.6,0.13368969]
[1723295439665,3.80348922,2628.8,2628.1,3.80491]
[1723295439666,3.80348922,2628.8,2628.1,3.88100093]
[1723295439864,3.80348922,2628.8,2628.7,0.13360293]
[1723295439865,3.0,2628.8,2628.7,0.13360293]
[1723295440062,3.0,2628.8,2628.2,1.90244]
[1723295440260,3.0,2628.8,2628.7,0.13343491]
[1723295440453,3.80348922,2628.8,2628.2,1.90244]
[1723295440774,3.0,2628.8,2628.1,1.97854093]
[1723295440981,4.902,2628.8,2628.3,0.13378199]
[1723295441181,4.902,2628.8,2628.2,0.13386878]
[1723295441686,1.90208,2628.7,2628.2,0.13386878]
[1723295442380,1.90219,2628.6,2628.3,0.12931019]
[1723295442675,1.90223,2628.5,2628.0,19.56]
[1723295442874,3.380427,2628.5,2628.4,0.12928421]
[1723295443082,3.380427,2628.5,2628.0,19.56]
[1723295443385,4.90215,2628.6,2628.0,21.46258]
[1723295443565,1.90215,2628.6,2628.1,0.12954457]
[1723295445057,1.90234,2628.4,2628.1,0.12954457]
[1723295445524,1.90234,2628.4,2627.7,21.46274]
[1723295445841,1.90244,2628.2,2627.7,19.56]
[1723295445982,1.90244,2628.2,2627.8,0.12980499]
[1723295446182,1.90244,2628.2,2627.7,19.56]
[1723295446405,1.90244,2628.2,2627.9,0.12971818]
[1723295446603,1.90244,2628.2,2627.7,19.56]
[1723295446807,2.6264224,2628.2,2628.0,0.12963137]
[1723295447084,1.90251,2628.1,2627.4,4.37001]
[1723295447493,1.90259,2628.0,2627.4,4.37001]
[1723295447696,2.4424,2628.1,2627.5,1.90294]
[1723295448529,4.34496,2628.1,2627.5,1.90294]
[1723295448817,3.0,2628.0,2627.5,1.90294]
[1723295449020,4.90265,2628.0,2627.3,9.39304]
[1723295449422,4.90265,2628.0,2627.3,11.29608]
[1723295450333,4.90265,2628.0,2627.3,9.39304]
[1723295450534,4.90265,2628.0,2627.3,11.29608]
[1723295451117,4.90265,2628.0,2627.3,23.36608]
[1723295452214,4.90265,2628.0,2627.3,21.46304]
[1723295452415,5.9198755,2628.0,2627.3,21.46304]
[1723295453975,5.9198755,2628.0,2627.3,23.36608]
[1723295454537,5.9198755,2628.0,2627.4,1.90298]
[1723295454745,3.0,2628.0,2627.5,1.90288]
[1723295454926,5.4424,2628.1,2627.5,3.80576]
[1723295455105,5.4424,2628.1,2627.6,1.90286]
[1723295455605,3.0,2628.1,2627.7,0.12989181]
[1723295455805,4.90246,2628.2,2627.7,0.12989181]
[1723295456599,4.90246,2628.2,2627.5,4.36988]
[1723295456846,4.90246,2628.2,2627.8,0.12980499]
[1723295457022,4.90246,2628.2,2627.6,19.56]
[1723295457319,3.0,2628.2,2627.9,0.12971818]
[1723295457510,5.4424,2628.3,2627.7,1.90275]
[1723295457710,5.4424,2628.3,2627.7,4.295732]